fUSD/lending_fUSD_20250806
["ID","MTS","AMOUNT","RATE_DAILY","PERIOD"]
[377603315,1754448888167,-1193.12,0.0004,14]
[377603316,1754448888177,-2817.66,0.0004,14]
[377603317,1754448888186,-2306.54,0.0004,14]
[377603318,1754448888196,-2354.23,0.0004,14]
[377603319,1754448888206,-150.0,0.00040021,120]
[377603320,1754448888217,-513.0,0.00040041,32]
[377603321,1754448888227,-152.0,0.00040186,13]
[377603322,1754448888237,-1000.0,0.00040199,30]
[377603323,1754448888246,-1010.039,0.00040199,2]
[377603324,1754448888256,-311.18561062,0.00040269,2]
[377603325,1754448888266,-155.643466,0.00040273,14]
[377603326,1754448888275,-1106.87216,0.00040273,14]
[377603327,1754448888284,-887.819081,0.00040273,14]
[377603328,1754448888295,-1255.615788,0.00040273,14]
[377603329,1754448888305,-192.679796,0.00040273,14]
[377603330,1754448888315,-1721.73,0.00040273,14]
[377603331,1754448888324,-160.207956,0.00040273,14]
[377603332,1754448888333,-155.350478,0.00040273,14]
[377603333,1754448888343,-160.207955,0.00040273,14]
[377603334,1754448888352,-158.6041,0.00040273,14]
[377603335,1754448888362,-158.6041,0.00040273,14]
[377603336,1754448888372,-160.207954,0.00040273,14]
[377603337,1754448888381,-158.6041,0.00040273,14]
[377603338,1754448888391,-160.207955,0.00040273,14]
[377603339,1754448888400,-155.350478,0.00040273,14]
[377603340,1754448888409,-158.604099,0.00040273,14]
[377603341,1754448888418,-1879.66,0.00040273,14]
[377603342,1754448888428,-517.54,0.00040273,14]
[377603343,1754448888437,-933.27,0.00040273,14]
[377603344,1754448888446,-400.0,0.00040273,14]
[377603345,1754448888456,-708.86,0.00040273,14]
[377603346,1754448888466,-412.42,0.00040273,14]
[377603347,1754448888476,-177.76400387,0.00040273,14]
[377603348,1754448888487,-415.77,0.00040273,14]
[377603349,1754448888496,-1925.55,0.00040273,14]
[377603350,1754448888506,-160.207954,0.00040273,14]
[377603351,1754448888516,-158.6041,0.00040273,14]
[377603352,1754448888525,-866.96,0.00040273,14]
[377603353,1754448888535,-523.82,0.00040273,14]
[377603354,1754448888544,-1993.73,0.00040273,14]
[377603355,1754448888554,-478.37,0.00040273,14]
[377603356,1754448888564,-1455.59,0.00040273,14]
[377603357,1754448888573,-1137.51,0.00040273,14]
[377603358,1754448888582,-1494.66,0.00040273,14]
[377603359,1754448888592,-2002.12,0.00040273,14]
[377603360,1754448888601,-400.0,0.00040273,14]
[377603361,1754448888611,-1040.39,0.00040273,14]
[377603362,1754448888620,-400.0,0.00040273,14]
[377603363,1754448888630,-662.16,0.00040273,14]
[377603364,1754448888639,-400.0,0.00040273,14]
[377603365,1754448888649,-2153.57,0.00040273,14]
[377603366,1754448888658,-1355.9,0.00040273,14]
[377603367,1754448888668,-904.68,0.00040273,14]
[377603368,1754448888678,-400.0,0.00040273,14]
[377603369,1754448888687,-545.31,0.00040273,14]
[377603370,1754448888697,-400.0,0.00040273,14]
[377603371,1754448888706,-400.0,0.00040273,14]
[377603372,1754448888716,-400.0,0.00040273,14]
[377603373,1754448888725,-1848.23,0.00040273,14]
[377603374,1754448888735,-837.58,0.00040273,14]
[377603375,1754448888744,-480.07499954,0.00040273,14]
[377603376,1754448888753,-426.53,0.00040273,14]
[377603377,1754448888762,-2053.66,0.00040273,14]
[377603378,1754448888771,-463.84,0.00040273,14]
[377603379,1754448888781,-1680.73,0.00040273,14]
[377603380,1754448888790,-400.0,0.00040273,14]
[377603381,1754448888801,-589.79,0.00040273,14]
[377603382,1754448888811,-485.82,0.00040273,14]
[377603383,1754448888821,-1174.99,0.00040273,14]
[377603384,1754448888831,-1560.83,0.00040273,14]
[377603385,1754448888840,-1343.09,0.00040273,14]
[377603386,1754448888850,-652.79,0.00040273,14]
[377603387,1754448888861,-807.49,0.00040273,14]
[377603388,1754448888871,-2272.01,0.00040273,14]
[377603389,1754448888881,-439.11,0.00040273,14]
[377603390,1754448888890,-400.0,0.00040273,14]
[377603391,1754448888900,-1269.54,0.00040273,14]
[377603392,1754448888910,-1601.77,0.00040273,14]
[377603393,1754448888921,-400.0,0.00040273,14]
[377603394,1754448888931,-549.88,0.00040273,14]
[377603395,1754448888941,-691.52,0.00040273,14]
[377603396,1754448888950,-937.63,0.00040273,14]
[377603397,1754448888960,-1238.53,0.00040273,14]
[377603398,1754448888970,-758.93,0.00040273,14]
[377603399,1754448888979,-842.35,0.00040273,14]
[377603400,1754448888990,-566.9,0.00040273,14]
[377603401,1754448889000,-1884.93,0.00040273,14]
[377603402,1754448889009,-1051.66,0.00040273,14]
[377603403,1754448889019,-1133.77,0.00040273,14]
[377603404,1754448889028,-1340.96,0.00040273,14]
[377603405,1754448889038,-1269.95,0.00040273,14]
[377603406,1754448889049,-1245.02,0.00040273,14]
[377603407,1754448889059,-400.0,0.00040273,14]
[377603408,1754448889068,-343.67206602,0.00040273,14]
[377603409,1754448889078,-1135.75,0.00040273,14]
[377603410,1754448889087,-400.96,0.00040273,14]
[377603411,1754448889097,-888.4,0.00040273,14]
[377603412,1754448889107,-1391.51,0.00040273,14]
[377603413,1754448889116,-885.84,0.00040273,14]
[377603414,1754448889126,-1485.63,0.00040273,14]
[377603415,1754448889135,-577.94,0.00040273,14]
[377603416,1754448889144,-400.0,0.00040273,14]
[377603417,1754448889154,-2205.6,0.00040273,14]
[377603418,1754448889164,-594.52,0.00040273,14]
[377603419,1754448889173,-516.69,0.00040273,14]
[377603420,1754448889183,-400.99,0.00040273,14]
[377603421,1754448889193,-798.43,0.00040273,14]
[377603422,1754448889204,-963.31,0.00040273,14]
[377603423,1754448889213,-825.61,0.00040273,14]
[377603424,1754448889223,-1955.89,0.00040273,14]
[377603425,1754448889232,-425.14,0.00040273,14]
[377603426,1754448889241,-872.75,0.00040273,14]
[377603427,1754448889250,-672.46,0.00040273,14]
[377603428,1754448889260,-254.55450603,0.00040273,7]
[377603429,1754448889269,-2048.4,0.00040273,14]
[377603430,1754448889278,-666.07,0.00040273,14]
[377603431,1754448889287,-1186.37,0.00040273,14]
[377603432,1754448889296,-1867.25,0.00040273,14]
[377603433,1754448889305,-400.0,0.00040273,14]
[377603434,1754448889314,-1486.37,0.00040273,14]
[377603435,1754448889323,-1282.75,0.00040273,14]
[377603436,1754448889332,-620.41,0.00040273,14]
[377603437,1754448889341,-426.54,0.00040273,14]
[377603438,1754448889350,-1685.19,0.00040273,14]
[377603439,1754448889360,-546.47,0.00040273,14]
[377603440,1754448889369,-1042.07,0.00040273,14]
[377603441,1754448889378,-607.47,0.00040273,14]
[377603442,1754448889387,-1387.34,0.00040273,14]
[377603443,1754448889396,-1608.62,0.00040273,14]
[377603444,1754448889405,-1266.36,0.00040273,14]
[377603445,1754448889414,-640.46,0.00040273,14]
[377603446,1754448889422,-1198.83,0.00040273,14]
[377603447,1754448889432,-850.06,0.00040273,14]
[377603448,1754448889441,-1040.96,0.00040273,14]
[377603449,1754448889450,-400.0,0.00040273,14]
[377603450,1754448889459,-2213.68,0.00040273,14]
[377603451,1754448889468,-400.0,0.00040273,14]
[377603452,1754448889476,-471.56,0.00040273,14]
[377603453,1754448889486,-627.73,0.00040273,14]
[377603454,1754448889494,-511.19,0.00040273,14]
[377603455,1754448889503,-440.85,0.00040273,14]
[377603456,1754448889512,-860.58,0.00040273,14]
[377603457,1754448889521,-1113.65,0.00040273,14]
[377603458,1754448889529,-985.67,0.00040273,14]
[377603459,1754448889538,-400.0,0.00040273,14]
[377603460,1754448889547,-523.26,0.00040273,14]
[377603461,1754448889556,-400.0,0.00040273,14]
[377603462,1754448889852,-531.05,0.00040273,14]
[377603463,1754448889870,-1788.17,0.00040273,14]
[377603464,1754448889879,-1913.41,0.00040273,14]
[377603465,1754448889890,-1243.8,0.00040273,14]
[377603466,1754448889899,-2195.18,0.00040273,14]
[377603467,1754448889909,-400.0,0.00040273,14]
[377603468,1754448889920,-400.0,0.00040273,14]
[377603469,1754448889930,-973.74,0.00040273,14]
[377603470,1754448889939,-257.25,0.00040273,14]
[377603471,1754448889948,-511.74,0.00040273,14]
[377603472,1754448889958,-1421.29,0.00040273,14]
[377603473,1754448889967,-1927.1,0.00040273,14]
[377603474,1754448889976,-880.55,0.00040273,14]
[377603475,1754448889986,-1559.95,0.00040273,14]
[377603476,1754448889995,-1237.93,0.00040273,14]
[377603477,1754448890006,-764.11,0.00040273,14]
[377603478,1754448890015,-832.23,0.00040273,14]
[377603479,1754448890024,-1200.18,0.00040273,14]
[377603480,1754448890033,-982.62,0.00040273,14]
[377603481,1754448890043,-851.23,0.00040273,14]
[377603482,1754448890052,-1009.21,0.00040273,14]
[377603483,1754448890062,-1056.91,0.00040273,14]
[377603484,1754448890071,-483.16,0.00040273,14]
[377603485,1754448890080,-454.78,0.00040273,14]
[377603486,1754448890090,-1461.35,0.00040273,14]
[377603487,1754448890099,-519.19,0.00040273,14]
[377603488,1754448890108,-400.0,0.00040273,14]
[377603489,1754448890117,-1050.13,0.00040273,14]
[377603490,1754448890127,-1907.53,0.00040273,14]
[377603491,1754448890135,-1615.6,0.00040273,14]
[377603492,1754448890145,-1550.81,0.00040273,14]
[377603493,1754448890154,-400.0,0.00040273,14]
[377603494,1754448890164,-1830.1,0.00040273,14]
[377603495,1754448890173,-802.15,0.00040273,14]
[377603496,1754448890183,-1088.04,0.00040273,14]
[377603497,1754448890195,-1000.0,0.00040273,120]
[377603498,1754448890204,-417.37,0.00040273,14]
[377603499,1754448890213,-1532.37,0.00040273,14]
[377603500,1754448890222,-3675.96,0.00040273,14]
[377603501,1754448890232,-498.81,0.00040273,14]
[377603502,1754448890241,-675.67,0.00040273,14]
[377603503,1754448890250,-1930.27,0.00040273,14]
[377603504,1754448890260,-477.88,0.00040273,14]
[377603505,1754448890269,-1895.26,0.00040273,14]
[377603506,1754448890278,-2398.75,0.00040273,14]
[377603507,1754448890287,-1056.68,0.00040273,14]
[377603508,1754448890297,-400.0,0.00040273,14]
[377603509,1754448890306,-1000.88,0.00040273,14]
[377603510,1754448890315,-693.8,0.00040273,14]
[377603511,1754448890324,-694.7,0.00040273,14]
[377603512,1754448890334,-400.0,0.00040273,14]
[377603513,1754448890343,-1317.27,0.00040273,14]
[377603514,1754448890352,-1087.98,0.00040273,14]
[377603515,1754448890362,-1841.73,0.00040273,14]
[377603516,1754448890372,-432.07,0.00040273,14]
[377603517,1754448890382,-660.48,0.00040273,14]
[377603518,1754448890393,-1706.66,0.00040273,14]
[377603519,1754448890403,-2115.6,0.00040273,14]
[377603520,1754448890414,-2048.1,0.00040273,14]
[377603521,1754448890424,-890.38,0.00040273,14]
[377603522,1754448890433,-400.0,0.00040273,14]
[377603523,1754448890444,-763.76,0.00040273,14]
[377603524,1754448890455,-554.46,0.00040273,14]
[377603525,1754448890466,-3061.86,0.00040273,14]
[377603526,1754448890477,-1869.25,0.00040273,14]
[377603527,1754448890487,-1241.1,0.00040273,14]
[377603528,1754448890496,-572.41,0.00040273,14]
[377603529,1754448890507,-1742.73,0.00040273,14]
[377603530,1754448890519,-589.98,0.00040273,14]
[377603531,1754448890528,-1978.5,0.00040273,14]
[377603532,1754448890537,-1056.28,0.00040273,14]
[377603533,1754448890546,-1789.45,0.00040273,14]
[377603534,1754448890555,-401.47438855,0.00040273,14]
[377603535,1754448890564,-3264.35,0.00040273,14]
[377603536,1754448890574,-719.58,0.00040273,14]
[377603537,1754448890584,-1335.74,0.00040273,14]
[377603538,1754448890593,-1301.62,0.00040273,14]
[377603539,1754448890602,-1906.92,0.00040273,14]
[377603540,1754448890611,-2206.71,0.00040273,14]
[377603541,1754448890620,-493.26,0.00040273,14]
[377603542,1754448890629,-386.95,0.00040273,14]
[377603543,1754448890638,-451.74,0.00040273,14]
[377603544,1754448890648,-1276.43,0.00040273,14]
[377603545,1754448890657,-986.68,0.00040273,14]
[377603546,1754448890666,-947.42,0.00040273,14]
[377603547,1754448890676,-2195.08,0.00040273,14]
[377603548,1754448890685,-1464.57,0.00040273,14]
[377603549,1754448890695,-2197.84,0.00040273,14]
[377603550,1754448890704,-804.15,0.00040273,14]
[377603551,1754448890714,-802.3,0.00040273,14]
[377603552,1754448890723,-400.0,0.00040273,14]
[377603553,1754448890731,-684.16,0.00040273,14]
[377603554,1754448890741,-400.0,0.00040273,14]
[377603555,1754448890750,-611.45,0.00040273,14]
[377603556,1754448890759,-744.31,0.00040273,14]
[377603557,1754448890768,-1536.69,0.00040273,14]
[377603558,1754448890777,-2158.92,0.00040273,14]
[377603559,1754448890787,-461.52,0.00040273,14]
[377603560,1754448890795,-400.0,0.00040273,14]
[377603561,1754448890804,-545.58,0.00040273,14]
[377603562,1754448890813,-820.58,0.00040273,14]
[377603563,1754448890822,-850.08,0.00040273,14]
[377603564,1754448890832,-1521.24,0.00040273,14]
[377603565,1754448890841,-1086.81,0.00040273,14]
[377603566,1754448890850,-2094.08,0.00040273,14]
[377603567,1754448890859,-1148.89,0.00040273,14]
[377603568,1754448890868,-647.61,0.00040273,14]
[377603569,1754448890877,-1804.32,0.00040273,14]
[377603570,1754448890887,-521.67,0.00040273,14]
[377603571,1754448890896,-688.12,0.00040273,14]
[377603572,1754448890905,-575.0,0.00040273,14]
[377603573,1754448890918,-460.78,0.00040273,14]
[377603574,1754448890927,-400.0,0.00040273,14]
[377603575,1754448890938,-1509.88,0.00040273,14]
[377603576,1754448890947,-400.0,0.00040273,14]
[377603577,1754448890957,-1836.14,0.00040273,14]
[377603578,1754448890966,-449.13,0.00040273,14]
[377603579,1754448890976,-1622.09,0.00040273,14]
[377603580,1754448890985,-2961.28,0.00040273,14]
[377603581,1754448890996,-1032.0,0.00040273,14]
[377603582,1754448891006,-878.8,0.00040273,14]
[377603583,1754448891015,-1829.37,0.00040273,14]
[377603584,1754448891025,-2880.34,0.00040273,14]
[377603585,1754448891034,-1462.8,0.00040273,14]
[377603586,1754448891043,-3418.23,0.00040273,14]
[377603587,1754448891053,-1158.06,0.00040273,14]
[377603588,1754448891062,-1563.04,0.00040273,14]
[377603589,1754448891071,-774.95,0.00040273,14]
[377603590,1754448891081,-650.36,0.00040273,14]
[377603591,1754448891090,-1923.25,0.00040273,14]
[377603592,1754448891103,-2020.14,0.00040273,14]
[377603593,1754448891113,-3412.85,0.00040273,14]
[377603594,1754448891122,-2285.89,0.00040273,14]
[377603595,1754448891131,-444.68,0.00040273,14]
[377603596,1754448891140,-400.0,0.00040273,14]
[377603597,1754448891150,-1704.34,0.00040273,14]
[377603598,1754448891159,-981.32,0.00040273,14]
[377603599,1754448891168,-422.51,0.00040273,14]
[377603600,1754448891190,-1217.8,0.00040273,14]
[377603601,1754448891206,-400.0,0.00040273,14]
[377603602,1754448891217,-719.56,0.00040273,14]
[377603603,1754448891233,-2049.87,0.00040273,14]
[377603604,1754448891242,-2284.92,0.00040273,14]
[377603605,1754448891251,-400.0,0.00040273,14]
[377603606,1754448891260,-426.16,0.00040273,14]
[377603607,1754448891270,-1324.35,0.00040273,14]
[377603608,1754448891279,-411.41694572,0.00040273,14]
[377603609,1754448891288,-536.81,0.00040273,14]
[377603610,1754448891297,-1978.73,0.00040273,14]
[377603611,1754448891307,-2066.75,0.00040273,14]
[377603612,1754448891315,-400.0,0.00040273,14]
[377603613,1754448891324,-2370.33,0.00040273,14]
[377603614,1754448891334,-471.28,0.00040273,14]
[377603615,1754448891343,-898.87,0.00040273,14]
[377603616,1754448891351,-681.38,0.00040273,14]
[377603617,1754448891360,-1380.46,0.00040273,14]
[377603618,1754448891370,-1159.52,0.00040273,14]
[377603619,1754448891379,-256.62583228,0.00040273,14]
[377603620,1754448891387,-2526.57,0.00040273,14]
[377603621,1754448891397,-589.89,0.00040273,14]
[377603622,1754448891406,-481.3,0.00040273,14]
[377603623,1754448891415,-618.59,0.00040273,14]
[377603624,1754448891424,-1918.49,0.00040273,14]
[377603625,1754448891433,-1943.34,0.00040273,14]
[377603626,1754448891442,-771.1,0.00040273,14]
[377603627,1754448891452,-738.49,0.00040273,14]
[377603628,1754448891461,-1101.66,0.00040273,14]
[377603629,1754448891470,-2119.77,0.00040273,14]
[377603630,1754448891480,-2486.07,0.00040273,14]
[377603631,1754448891489,-825.89,0.00040273,14]
[377603632,1754448891498,-1301.09,0.00040273,14]
[377603633,1754448891508,-264.99068107,0.00040273,14]
[377603634,1754448891517,-400.0,0.00040273,14]
[377603635,1754448891526,-400.0,0.00040273,14]
[377603636,1754448891536,-400.0,0.00040273,14]
[377603637,1754448891545,-400.0,0.00040273,14]
[377603638,1754448891554,-424.16,0.00040273,14]
[377603639,1754448891564,-1940.75,0.00040273,14]
[377603640,1754448891573,-681.33,0.00040273,14]
[377603641,1754448891581,-400.0,0.00040273,14]
[377603642,1754448891590,-1594.04,0.00040273,14]
[377603643,1754448891599,-400.0,0.00040273,14]
[377603644,1754448891608,-1556.67,0.00040273,14]
[377603645,1754448891617,-2008.42,0.00040273,14]
[377603646,1754448891626,-803.41,0.00040273,14]
[377603647,1754448891635,-1049.45,0.00040273,14]
[377603648,1754448891644,-2287.11,0.00040273,14]
[377603649,1754448891653,-3089.8,0.00040273,14]
[377603650,1754448891662,-2094.9,0.00040273,14]
[377603651,1754448891671,-2284.3,0.00040273,14]
[377603652,1754448891680,-1760.6,0.00040273,14]
[377603653,1754448891690,-590.2,0.00040273,14]
[377603654,1754448891700,-538.64,0.00040273,14]
[377603655,1754448891710,-904.68,0.00040273,14]
[377603656,1754448891719,-524.39,0.00040273,14]
[377603657,1754448891729,-400.0,0.00040273,14]
[377603658,1754448891738,-477.4,0.00040273,14]
[377603659,1754448891748,-400.0,0.00040273,14]
[377603660,1754448891757,-473.05,0.00040273,14]
[377603661,1754448891767,-1562.45,0.00040273,14]
[377603662,1754448891776,-681.47,0.00040273,14]
[377603663,1754448891785,-1343.91,0.00040273,14]
[377603664,1754448891795,-1123.2,0.00040273,14]
[377603665,1754448891804,-402.35,0.00040273,14]
[377603666,1754448891813,-992.23,0.00040273,14]
[377603667,1754448891823,-905.29,0.00040273,14]
[377603668,1754448891831,-506.02,0.00040273,14]
[377603669,1754448891841,-1620.39,0.00040273,14]
[377603670,1754448891850,-1647.26,0.00040273,14]
[377603671,1754448891859,-2673.63,0.00040273,14]
[377603672,1754448891869,-833.81,0.00040273,14]
[377603673,1754448891878,-423.93,0.00040273,14]
[377603674,1754448891888,-659.8,0.00040273,14]
[377603675,1754448891897,-3032.43,0.00040273,14]
[377603676,1754448891906,-400.0,0.00040273,14]
[377603677,1754448891920,-2718.79,0.00040273,14]
[377603678,1754448891929,-400.0,0.00040273,14]
[377603679,1754448891939,-1352.85,0.00040273,14]
[377603680,1754448891948,-652.53,0.00040273,14]
[377603681,1754448891957,-537.68,0.00040273,14]
[377603682,1754448891967,-591.66,0.00040273,14]
[377603683,1754448891976,-1194.25,0.00040273,14]
[377603684,1754448891984,-1325.26,0.00040273,14]
[377603685,1754448891994,-687.17,0.00040273,14]
[377603686,1754448892003,-400.0,0.00040273,14]
[377603687,1754448892013,-2118.84,0.00040273,14]
[377603688,1754448892022,-1193.92,0.00040273,14]
[377603689,1754448892032,-3219.58,0.00040273,14]
[377603690,1754448892041,-2996.94,0.00040273,14]
[377603691,1754448892051,-400.0,0.00040273,14]
[377603692,1754448892060,-509.96,0.00040273,14]
[377603693,1754448892069,-825.46,0.00040273,14]
[377603694,1754448892078,-2100.37,0.00040273,14]
[377603695,1754448892088,-400.0,0.00040273,14]
[377603696,1754448892097,-2113.04,0.00040273,14]
[377603697,1754448892106,-445.22,0.00040273,14]
[377603698,1754448892115,-400.0,0.00040273,14]
[377603699,1754448892124,-400.0,0.00040273,14]
[377603700,1754448892133,-1931.44,0.00040273,14]
[377603701,1754448892142,-400.0,0.00040273,14]
[377603702,1754448892152,-400.0,0.00040273,14]
[377603703,1754448892161,-590.55,0.00040273,14]
[377603704,1754448892171,-2053.25,0.00040273,14]
[377603705,1754448892181,-1620.16,0.00040273,14]
[377603706,1754448892274,-1273.79,0.00040273,14]
[377603707,1754448892283,-457.71,0.00040273,14]
[377603708,1754448892292,-2044.76,0.00040273,14]
[377603709,1754448892301,-1325.52,0.00040273,14]
[377603710,1754448892310,-3399.61,0.00040273,14]
[377603711,1754448892319,-1026.17,0.00040273,14]
[377603712,1754448892328,-486.69,0.00040273,14]
[377603713,1754448892337,-400.0,0.00040273,14]
[377603714,1754448892346,-723.29,0.00040273,14]
[377603715,1754448892355,-2493.6,0.00040273,14]
[377603716,1754448892364,-651.88,0.00040273,14]
[377603717,1754448892374,-400.0,0.00040273,14]
[377603718,1754448892383,-903.69,0.00040273,14]
[377603719,1754448892392,-1532.92,0.00040273,14]
[377603720,1754448892401,-400.0,0.00040273,14]
[377603721,1754448892410,-672.26,0.00040273,14]
[377603722,1754448892419,-1382.08,0.00040273,14]
[377603723,1754448892429,-400.0,0.00040273,14]
[377603724,1754448892438,-2614.37,0.00040273,14]
[377603725,1754448892447,-677.89,0.00040273,14]
[377603726,1754448892456,-502.17,0.00040273,14]
[377603727,1754448892465,-579.93,0.00040273,14]
[377603728,1754448892474,-832.0,0.00040273,14]
[377603729,1754448892483,-400.0,0.00040273,14]
[377603730,1754448892492,-717.13,0.00040273,14]
[377603731,1754448892501,-400.0,0.00040273,14]
[377603732,1754448892510,-2778.5,0.00040273,14]
[377603733,1754448892519,-1985.89,0.00040273,14]
[377603734,1754448892528,-400.0,0.00040273,14]
[377603735,1754448892537,-1383.95,0.00040273,14]
[377603736,1754448892546,-1028.28,0.00040273,14]
[377603737,1754448892555,-2015.29,0.00040273,14]
[377603738,1754448892564,-3708.79,0.00040273,14]
[377603739,1754448892573,-752.93,0.00040273,14]
[377603740,1754448892583,-2553.57,0.00040273,14]
[377603741,1754448892592,-735.15,0.00040273,14]
[377603742,1754448892601,-400.0,0.00040273,14]
[377603743,1754448892610,-1607.76,0.00040273,14]
[377603744,1754448892619,-400.0,0.00040273,14]
[377603745,1754448892627,-2459.31,0.00040273,14]
[377603746,1754448892636,-757.96,0.00040273,14]
[377603747,1754448892645,-1838.27,0.00040273,14]
[377603748,1754448892654,-401.90607201,0.00040273,14]
[377603749,1754448892663,-2248.73,0.00040273,14]
[377603750,1754448892672,-865.96,0.00040273,14]
[377603751,1754448892682,-842.75,0.00040273,14]
[377603752,1754448892691,-1141.46,0.00040273,14]
[377603753,1754448892700,-2023.14,0.00040273,14]
[377603754,1754448892709,-1074.3,0.00040273,14]
[377603755,1754448892718,-1094.22,0.00040273,14]
[377603756,1754448892727,-1520.4,0.00040273,14]
[377603757,1754448892736,-1903.84,0.00040273,14]
[377603758,1754448892745,-715.12,0.00040273,14]
[377603759,1754448892754,-1769.99,0.00040273,14]
[377603760,1754448892763,-3013.96,0.00040273,14]
[377603761,1754448892772,-1189.15,0.00040273,14]
[377603762,1754448892781,-400.0,0.00040273,14]
[377603763,1754448892790,-450.72,0.00040273,14]
[377603764,1754448892799,-1853.29,0.00040273,14]
[377603765,1754448892809,-414.57,0.00040273,14]
[377603766,1754448892818,-2171.13,0.00040273,14]
[377603767,1754448892827,-492.36,0.00040273,14]
[377603768,1754448892837,-1432.94,0.00040273,14]
[377603769,1754448892846,-2772.54,0.00040273,14]
[377603770,1754448892855,-660.15,0.00040273,14]
[377603771,1754448892864,-687.86,0.00040273,14]
[377603772,1754448892874,-1512.02,0.00040273,14]
[377603773,1754448892883,-1752.0,0.00040273,14]
[377603774,1754448892892,-1827.77,0.00040273,14]
[377603775,1754448892901,-710.17,0.00040273,14]
[377603776,1754448892911,-2123.08,0.00040273,14]
[377603777,1754448892922,-491.04140778,0.00040273,14]
[377603778,1754448892932,-2320.18,0.00040273,14]
[377603779,1754448892941,-541.8,0.00040273,14]
[377603780,1754448892951,-1290.75,0.00040273,14]
[377603781,1754448892961,-2988.22,0.00040273,14]
[377603782,1754448892970,-432.19,0.00040273,14]
[377603783,1754448892979,-650.32,0.00040273,14]
[377603784,1754448892990,-3809.64,0.00040273,14]
[377603785,1754448892999,-786.46,0.00040273,14]
[377603786,1754448893008,-2067.35,0.00040273,14]
[377603787,1754448893018,-1893.56,0.00040273,14]
[377603788,1754448893027,-436.89,0.00040273,14]
[377603789,1754448893036,-1091.29,0.00040273,14]
[377603790,1754448893045,-2572.93,0.00040273,14]
[377603791,1754448893054,-403.94,0.00040273,14]
[377603792,1754448893063,-2121.86,0.00040273,14]
[377603793,1754448893072,-1090.58,0.00040273,14]
[377603794,1754448893082,-2572.33,0.00040273,14]
[377603795,1754448893091,-1310.5,0.00040273,14]
[377603796,1754448893100,-1680.95,0.00040273,14]
[377603797,1754448893109,-1082.92,0.00040273,14]
[377603798,1754448893118,-569.78,0.00040273,14]
[377603799,1754448893127,-456.45,0.00040273,14]
[377603800,1754448893136,-1882.26,0.00040273,14]
[377603801,1754448893144,-541.54,0.00040273,14]
[377603802,1754448893153,-615.57,0.00040273,14]
[377603803,1754448893163,-819.87,0.00040273,14]
[377603804,1754448893172,-1272.84,0.00040273,14]
[377603805,1754448893181,-2393.94,0.00040273,14]
[377603806,1754448893191,-472.45,0.00040273,14]
[377603807,1754448893200,-1821.93,0.00040273,14]
[377603808,1754448893209,-400.0,0.00040273,14]
[377603809,1754448893219,-2205.0,0.00040273,14]
[377603810,1754448893228,-2459.29,0.00040273,14]
[377603811,1754448893237,-571.97,0.00040273,14]
[377603812,1754448893246,-1723.53,0.00040273,14]
[377603813,1754448893255,-1450.07,0.00040273,14]
[377603814,1754448893264,-400.0,0.00040273,14]